bitfinex/quotes_ETHUSD_20241001
["timestamp","ask_amount","ask_price","bid_price","bid_amount"]
[1727817831023,0.8296,2461.4,2461.2,3.71772657]
[1727817831594,0.406233,2461.6,2461.3,4.06289]
[1727817831797,0.8296,2461.7,2461.3,8.12569]
[1727817832198,0.8296,2461.7,2461.4,4.0627]
[1727817832731,0.04492839,2461.6,2461.3,4.0628]
[1727817833019,0.04492839,2461.6,2461.4,4.06263]
[1727817834121,0.04492839,2461.6,2461.5,4.06256]
[1727817834306,0.04492839,2461.6,2461.2,3.71772657]
[1727817834307,0.04492839,2461.6,2461.3,4.06289]
[1727817836143,0.53859623,2461.6,2461.4,4.0627]
[1727817836302,0.53859623,2461.6,2461.2,3.71772657]
[1727817836303,0.04492839,2461.6,2461.2,3.71772657]
[1727817836502,0.04492839,2461.6,2461.4,4.06269]
[1727817837245,0.04492839,2461.6,2461.2,7.78069657]
[1727817837406,0.53859823,2461.6,2461.2,7.78069657]
[1727817837604,0.53859823,2461.6,2461.3,4.06278]
[1727817837908,0.04492839,2461.6,2461.3,4.06278]
[1727817839204,0.04492839,2461.6,2461.4,4.06271]
[1727817839435,0.04492839,2461.6,2461.2,3.71772657]
[1727817839649,0.04492839,2461.6,2461.3,4.06279]
[1727817840616,0.04492839,2461.6,2461.2,7.78077657]
[1727817841030,0.04492839,2461.6,2461.3,4.0628]
[1727817841255,0.04492839,2461.6,2461.2,7.78075657]
[1727817841554,0.04492839,2461.6,2461.5,3.71772657]
[1727817841737,0.04492839,2461.6,2461.5,7.78028657]
[1727817841913,0.8022,2462.0,2461.6,4.06236]
[1727817842111,0.04255414,2461.9,2461.6,4.06236]
[1727817842640,0.04255414,2461.9,2461.8,7.77978657]
[1727817843161,0.8022,2462.3,2462.0,8.1233]
[1727817843363,1.288524,2462.3,2462.0,8.1233]
[1727817843567,0.8022,2462.3,2462.1,4.06154]
[1727817843766,0.8022,2462.6,2462.1,3.71772657]
[1727817844060,0.8022,2462.6,2462.1,11.84064657]
[1727817844061,5.6752,2462.6,2462.1,11.84064657]
[1727817844555,6.98765241,2462.9,2462.4,7.77871657]
[1727817844777,0.8022,2462.9,2462.4,7.77870657]
[1727817844929,0.8022,2462.9,2462.5,4.06082]
[1727817845118,6.18510241,2463.1,2462.5,4.06082]
[1727817845119,0.8022,2463.1,2462.5,4.06082]
[1727817845321,4.75882724,2463.0,2462.6,3.71772657]
[1727817845715,4.05953,2463.4,2462.8,3.71772657]
[1727817845943,4.05953,2463.4,2462.4,4.06101]
[1727817845944,4.86146,2463.5,2463.0,7.77780657]
[1727817846169,0.69865124,2463.4,2463.0,7.77772657]
[1727817846867,0.8022,2463.5,2463.2,3.71772657]
[1727817847535,0.04310121,2463.4,2463.2,7.77746657]
[1727817847931,4.86124,2463.7,2463.2,11.83712657]
[1727817848137,0.52922521,2463.6,2463.2,7.77738657]
[1727817848824,0.04310121,2463.6,2463.2,11.83705657]
[1727817849167,0.04310121,2463.6,2463.4,4.0594]
[1727817849321,0.04310121,2463.6,2463.5,3.71772657]
[1727817849516,4.05865,2463.9,2463.5,3.71772657]
[1727817849724,4.05865,2463.9,2463.6,4.05907]
[1727817849725,0.0426871,2463.8,2463.6,4.05907]
[1727817849923,0.0426871,2463.8,2463.5,3.71772657]
[1727817850122,8.91901,2464.1,2463.5,7.77697657]
[1727817850364,4.0998142,2464.0,2463.5,7.77691657]
[1727817850669,0.93730562,2464.0,2463.5,7.77691657]
[1727817851090,0.93730562,2464.0,2463.6,4.05907]
[1727817851240,0.0412642,2464.0,2463.6,4.05907]
[1727817852237,0.0412642,2464.0,2463.7,4.0589]
[1727817852470,0.0412642,2464.0,2463.8,3.71772657]
[1727817852681,4.86029,2464.3,2463.8,7.77645657]
[1727817852979,0.7999,2463.8,2463.0,4.06008]
[1727817853288,0.7999,2463.8,2462.8,3.71772657]
[1727817853289,4.05961,2463.3,2462.8,3.71772657]
[1727817853576,0.0419949,2463.2,2462.8,3.71772657]
[1727817853778,0.53214539,2463.2,2462.8,3.71772657]
[1727817854081,0.49015049,2463.2,2462.8,7.77804657]
[1727817854241,0.0419949,2463.1,2462.8,3.71772657]
[1727817854438,0.58116044,2463.1,2462.8,3.71772657]
[1727817855066,0.58116044,2463.1,2462.6,4.06071]
[1727817855067,4.64118044,2463.1,2462.6,4.06071]
[1727817855488,0.58116044,2463.1,2462.6,4.06065]
[1727817855650,0.58116044,2463.1,2462.7,4.06056]
[1727817855843,2.41709204,2463.0,2462.6,4.06065]
[1727817856237,2.41709204,2463.0,2462.4,7.061]
[1727817856238,19.53,2462.9,2462.4,7.061]
[1727817856467,0.7999,2462.8,2462.4,7.061]
[1727817856636,20.3299,2462.8,2462.4,4.061]
[1727817856839,20.3299,2462.8,2462.2,7.77904657]
[1727817856840,4.06059,2462.7,2462.2,7.77903657]
[1727817857048,2.439049,2462.6,2462.2,8.12262]
[1727817857682,0.0419949,2462.5,2462.2,4.06131]
[1727817857975,0.0419949,2462.5,2462.2,4.0614]
[1727817858382,19.53,2462.4,2462.1,4.06156]
[1727817858877,0.0419949,2462.3,2462.0,7.77941657]
[1727817859047,19.5719949,2462.3,2462.1,4.06157]
[1727817859651,19.5719949,2462.3,2462.2,4.0614]
[1727817859850,19.5719949,2462.3,2462.1,4.06157]
[1727817862242,19.5719949,2462.3,2462.2,4.0614]
[1727817864041,0.0419949,2462.3,2462.2,4.0614]
[1727817864442,19.53,2462.7,2462.3,4.06115]
[1727817864645,2.03299,2462.6,2462.4,4.06106]
[1727817866287,2.03299,2462.6,2462.4,8.12205]
[1727817866493,2.03299,2462.6,2462.4,4.06099]
[1727817866710,2.03299,2462.6,2462.4,4.06096]
[1727817866915,2.03299,2462.6,2462.4,8.12194]
[1727817867105,2.03299,2462.6,2462.4,4.06096]
[1727817868478,2.03299,2462.6,2462.5,4.06091]
[1727817868683,19.53,2462.6,2462.0,7.77942657]
[1727817868894,20.3299,2462.8,2462.5,4.0609]
[1727817869070,19.53,2462.9,2462.7,4.06044]
[1727817869405,19.53,2462.9,2462.8,4.06041]
[1727817869710,24.38439,2463.3,2462.8,4.06041]
[1727817870006,19.53,2463.2,2462.8,4.06041]
[1727817870168,22.374382,2463.2,2462.8,8.12075]
[1727817870568,22.374382,2463.2,2462.9,4.06016]
[1727817870764,22.374382,2463.2,2462.8,8.12067]
[1727817871200,22.374382,2463.2,2462.8,4.06033]
[1727817871509,0.59268007,2463.1,2462.8,4.06033]
[1727817872270,0.59268007,2463.1,2462.8,8.12066]
[1727817872472,0.59268007,2463.1,2462.8,4.06033]
[1727817872916,20.12268007,2463.1,2462.8,4.06033]
[1727817873806,20.12268007,2463.1,2462.9,4.06024]
[1727817877176,19.53,2463.1,2462.9,4.06024]
[1727817877616,0.0402831,2463.0,2462.9,4.06024]
[1727817878169,4.05893,2463.7,2463.3,4.05954]
[1727817878170,19.53,2463.7,2463.3,4.05954]
[1727817878383,0.7948,2463.9,2463.6,4.05909]
[1727817880086,4.05827,2464.2,2463.6,8.1181]
[1727817880307,23.58828,2464.1,2463.6,4.05901]
[1727817880516,2.764655,2464.0,2463.6,4.05901]
[1727817883690,2.764655,2464.0,2463.6,8.11802]
[1727817883885,19.53,2464.1,2463.6,4.05908]
[1727817884223,23.58835,2464.1,2463.6,4.05908]
[1727817884597,23.58835,2464.1,2463.6,8.11801]
[1727817884797,19.53,2464.0,2463.6,8.11801]
[1727817884992,19.53,2464.0,2463.7,4.05884]
[1727817885328,19.53,2464.0,2463.8,4.05875]
[1727817889196,19.53,2464.0,2463.7,4.05888]
[1727817889398,0.766,2463.9,2462.9,4.06022]
[1727817889602,23.58886,2463.8,2463.1,4.0598]
[1727817889812,19.53,2463.8,2463.2,4.05965]
[1727817890025,4.05918,2463.6,2463.1,4.0598]
[1727817890340,6.494426,2463.7,2463.1,4.0598]
[1727817890547,4.0591,2463.6,2463.1,8.11964]
[1727817890694,1.0553526,2463.5,2463.1,8.11964]
[1727817890902,1.0553526,2463.5,2463.1,4.0598]
[1727817891136,6.494456,2463.7,2463.2,4.05967]
[1727817892722,0.80267535,2463.6,2463.2,4.05967]
[1727817893735,19.53,2463.5,2463.2,4.05967]
[1727817894106,0.03666472,2463.4,2463.2,4.05967]
[1727817894441,19.56666472,2463.4,2463.2,4.05967]
[1727817896205,19.56666472,2463.4,2463.2,8.11934]
[1727817896851,19.56666472,2463.4,2463.2,4.05967]
[1727817897056,19.56666472,2463.4,2463.2,8.11935]
[1727817897945,19.53,2463.4,2463.2,8.11935]
[1727817898305,19.53,2463.4,2463.3,4.05959]
[1727817899243,19.53,2463.4,2463.2,4.05967]
[1727817899439,19.53,2463.4,2463.3,4.05959]
[1727817899624,19.53,2463.5,2463.3,4.05959]
[1727817899824,22.2090456,2463.5,2463.3,4.05959]
[1727817900550,20.2935,2463.9,2463.7,4.05885]
[1727817900752,19.53,2464.0,2463.7,4.05885]
[1727817900923,19.53,2464.0,2463.8,4.05867]
[1727817901257,19.53,2464.0,2463.9,4.0586]
[1727817901548,19.53,2464.0,2463.8,4.05865]
[1727817901749,0.7635,2464.2,2463.9,4.0586]
[1727817902107,19.53,2464.3,2463.6,3.71772657]
[1727817902305,19.53,2464.3,2464.2,4.05811]
[1727817902540,20.2935,2464.7,2464.3,4.05794]
[1727817902747,20.2935,2464.7,2464.3,8.11578]
[1727817902954,20.2935,2464.7,2464.3,4.05784]
[1727817903112,2.435063,2464.6,2464.3,4.05784]
[1727817903342,2.435063,2464.6,2464.4,4.05767]
[1727817904742,2.435063,2464.6,2464.1,4.05815]
[1727817904933,4.0578,2464.4,2463.9,4.05852]
[1727817905164,4.0578,2464.4,2463.9,4.05847]
[1727817905364,6.3304863,2464.5,2464.0,4.05834]
[1727817905874,4.05788,2464.4,2463.9,4.05847]
[1727817906177,5.86031663,2464.3,2463.8,4.05874]
[1727817906534,5.86031663,2464.3,2463.7,8.11765]
[1727817906847,21.33233663,2464.3,2463.8,4.05867]
[1727817907075,21.33233663,2464.3,2464.0,4.05829]
[1727817907076,1.35916447,2464.2,2464.0,4.05829]
[1727817907260,1.35916447,2464.2,2464.1,4.05827]
[1727817908067,1.35916447,2464.2,2464.0,4.05832]
[1727817909249,1.35916447,2464.2,2463.9,8.11696]
[1727817909775,1.35916447,2464.2,2464.0,4.05838]
[1727817910273,1.35916447,2464.2,2463.9,4.05848]
[1727817910481,20.56883663,2464.3,2464.1,4.05812]
[1727817910683,19.53,2464.3,2464.2,4.05811]
[1727817910882,20.2935,2464.6,2464.1,4.05812]
[1727817911095,0.7635,2464.6,2464.3,4.05792]
[1727817911386,2.32935,2464.6,2464.4,4.05777]
[1727817911713,2.32935,2464.6,2464.3,4.05786]
[1727817911852,19.53,2464.8,2464.3,4.05785]
[1727817912188,0.7635,2464.9,2464.6,4.05732]
[1727817912493,0.7635,2464.9,2464.5,4.05756]
[1727817912494,19.53,2465.1,2464.7,4.05727]
[1727817912649,4.87836,2465.2,2464.8,4.05711]
[1727817912850,4.87836,2465.2,2464.7,8.1144]
[1727817912851,0.487836,2465.1,2464.7,8.1144]
[1727817913077,4.87836,2465.2,2464.7,8.1144]
[1727817913386,4.87836,2465.2,2464.5,4.05745]
[1727817913587,8.93495,2465.2,2464.7,4.05728]
[1727817914280,4.87836,2465.2,2464.7,4.05728]
[1727817914473,4.05666,2465.1,2464.5,4.05745]
[1727817914673,4.87836,2465.2,2464.6,4.05739]
[1727817914882,2.440836,2465.1,2464.6,4.05739]
[1727817915191,2.440836,2465.1,2464.7,4.05726]
[1727817915492,2.440836,2465.1,2464.6,4.05744]
[1727817915493,4.05673,2465.1,2464.6,4.05744]
[1727817915798,4.05673,2465.1,2464.7,4.05728]
[1727817916549,1.2453483,2465.2,2464.7,4.05728]
[1727817916789,5.3018283,2465.2,2464.7,4.05721]
[1727817916968,7.99716978,2465.2,2464.7,4.05721]
[1727817917368,27.10362148,2465.2,2464.7,4.05721]
[1727817917567,23.04714148,2465.2,2464.7,4.05721]
[1727817917770,27.10361148,2465.2,2464.7,4.05721]
[1727817918085,4.05665,2465.1,2464.7,4.05721]
[1727817919792,4.05697,2464.9,2464.5,4.05748]
[1727817920092,4.05697,2464.9,2464.4,7.05776]
[1727817920854,4.05683,2465.0,2464.5,4.05753]
[1727817921060,1.12294992,2464.9,2464.4,7.05776]
[1727817921291,1.12294992,2464.9,2462.7,2.447]
[1727817921292,4.87903,2464.8,2464.3,4.05792]
[1727817921494,25.41492499,2464.8,2464.3,4.05792]
[1727817921872,21.35769499,2464.8,2464.4,8.11539]
[1727817922068,21.35769499,2464.8,2464.4,4.05764]
[1727817922373,25.41481499,2464.8,2464.4,4.05764]
[1727817922575,0.03628895,2464.7,2464.1,4.05816]
[1727817922760,3.09942234,2464.7,2464.0,3.0]
[1727817922956,7.15671234,2464.7,2464.2,4.05801]
[1727817923210,4.05746,2464.6,2464.1,4.05816]
[1727817923403,0.71568823,2464.5,2464.1,4.05816]
[1727817923696,0.03628895,2464.4,2464.3,4.0579]
[1727817924269,3.06313339,2464.7,2464.3,4.0579]
[1727817924463,0.03628895,2464.4,2464.3,4.0579]
[1727817924665,7.12042339,2464.7,2464.3,4.0579]
[1727817924899,0.03628895,2464.4,2464.3,4.0579]
[1727817925100,2.84779484,2464.6,2464.3,4.0579]
[1727817925287,0.03628895,2464.4,2464.3,4.0579]
[1727817925481,2.84779484,2464.6,2464.3,4.0579]
[1727817925701,0.03628895,2464.4,2464.3,4.0579]
[1727817925920,20.3518,2464.8,2464.1,3.71772657]
[1727817926076,20.3518,2464.8,2464.5,4.05754]
[1727817926923,20.3518,2464.8,2464.1,4.08949923]
[1727817926924,20.3518,2464.8,2464.1,4.05827]
[1727817927080,4.0575,2464.6,2464.1,4.05821]
[1727817927712,4.05764,2464.5,2464.1,4.05827]
[1727817929117,4.0575,2464.6,2464.1,4.05827]
[1727817929317,8.11508,2464.6,2464.1,4.05827]
[1727817929656,0.84745768,2464.5,2464.1,4.05827]
[1727817931227,4.90517768,2464.5,2464.1,4.05827]
[1727817931717,0.84745768,2464.5,2464.1,4.05827]
[1727817931925,4.0575,2464.6,2464.1,4.05827]
[1727817932222,19.53,2464.5,2464.1,4.05827]
[1727817933426,23.58765,2464.5,2464.1,4.05827]
[1727817933936,19.53,2464.5,2464.2,4.05801]
[1727817935007,19.53,2464.5,2464.2,4.05806]
[1727817935194,19.53,2464.5,2464.1,4.05817]
[1727817935393,19.53,2464.5,2464.3,4.05794]
[1727817936425,19.53,2464.5,2464.1,4.83572966]
[1727817937290,19.53,2464.5,2464.2,4.05808]
[1727817937709,0.03606584,2464.4,2464.3,4.05794]
[1727817937913,0.03606584,2464.4,2464.1,4.83584966]
[1727817938095,4.05758,2464.6,2464.1,4.83584966]
[1727817938425,4.05758,2464.6,2464.1,4.05826]
[1727817939226,4.05758,2464.6,2463.9,3.71772657]
[1727817939426,4.05729,2464.7,2464.2,4.05799]
[1727817939725,4.950923,2464.7,2464.2,8.11598]
[1727817940691,4.950923,2464.7,2464.2,4.05799]
[1727817940903,4.950923,2464.7,2464.2,8.11602]
[1727817941106,24.480923,2464.7,2464.2,8.11602]
[1727817942856,20.423633,2464.7,2464.3,4.05793]
[1727817943225,24.480923,2464.7,2464.3,4.05793]
[1727817944135,20.423633,2464.7,2464.3,4.05793]
[1727817944312,19.53,2464.7,2464.2,7.77571657]
[1727817944513,19.53,2464.7,2464.4,4.05764]
[1727817944745,19.53,2464.7,2464.4,8.11534]
[1727817945129,19.53,2464.7,2464.5,4.0576]
[1727817945323,19.53,2464.7,2464.6,4.05745]
[1727817947050,20.3081,2465.0,2464.6,4.05745]
[1727817947255,20.3081,2465.0,2464.7,4.05724]
[1727817947710,20.3081,2465.0,2464.6,4.05743]
[1727817949744,20.3081,2465.0,2464.4,5.24098666]
[1727817949912,20.3081,2465.0,2464.6,4.05743]
[1727817950851,20.3081,2465.0,2464.7,4.05728]
[1727817951032,0.7781,2465.0,2464.8,4.05698]
[1727817951416,0.7781,2465.0,2464.7,4.05728]
[1727817951819,0.7781,2465.0,2464.5,4.05748]
[1727817952019,0.7781,2465.0,2464.7,4.05726]
[1727817952560,0.7781,2465.0,2464.7,3.95726]
[1727817954953,0.7781,2465.0,2464.8,4.05711]
[1727817955818,20.3081,2465.0,2464.8,4.05711]
[1727817956466,20.3081,2465.0,2464.8,8.11415]
[1727817956954,20.3081,2465.0,2464.8,4.05704]
[1727817957663,19.53,2465.0,2464.9,4.05695]
[1727817958177,19.53,2465.0,2464.8,4.05704]
[1727817958328,19.53,2465.0,2464.8,4.05702]
[1727817958843,19.53,2465.0,2464.8,8.11405]
[1727817959162,19.53,2465.0,2464.8,4.05702]
[1727817959379,19.53,2465.0,2464.9,4.05695]
[1727817960441,19.53,2465.0,2464.7,4.05713]
[1727817960769,19.53,2465.0,2464.8,4.05709]
[1727817961533,19.53,2465.0,2464.9,4.05695]
[1727817961763,19.53,2465.1,2464.9,4.05695]
[1727817961964,19.53,2465.1,2464.8,4.0571]
[1727817962869,19.53,2465.1,2464.7,4.05713]
[1727817963036,23.58664,2465.1,2464.7,4.05713]
[1727817963236,25.71625991,2465.1,2464.7,4.05713]
[1727817963473,2.74733291,2465.0,2464.7,4.05713]
[1727817963681,2.74733291,2465.0,2464.8,4.05711]
[1727817964181,2.74733291,2465.0,2464.7,4.05713]
[1727817964967,2.74733291,2465.0,2464.7,8.11434]
[1727817965174,2.74733291,2465.0,2464.4,4.05768]
[1727817965175,0.8026,2464.8,2464.4,4.05768]
[1727817965337,4.85974,2464.8,2464.4,4.05768]
[1727817965678,4.85974,2464.8,2464.3,4.05792]
[1727817966029,0.8026,2464.8,2464.4,4.05776]
[1727817967176,0.8026,2464.8,2464.4,4.05771]
[1727817967397,0.94301206,2464.7,2464.4,4.05771]
[1727817968659,0.94301206,2464.7,2464.4,4.05767]
[1727817969003,4.86014,2464.6,2464.2,4.05802]
[1727817969202,0.8026,2464.6,2464.1,4.05827]
[1727817969501,8.90860574,2464.5,2464.0,1.71049665]
[1727817969701,4.85090574,2464.5,2464.0,4.05843]
[1727817969906,0.8026,2464.4,2464.0,4.05843]
[1727817970381,0.8026,2464.4,2464.1,4.05823]
[1727817970577,1.58093711,2464.4,2464.1,4.05823]
[1727817971370,1.58093711,2464.4,2464.0,8.11678]
[1727817971772,1.58093711,2464.4,2463.7,4.05885]
[1727817971773,0.8026,2464.3,2463.7,4.05885]
[1727817972005,0.8026,2464.3,2463.8,4.05867]
[1727817972006,6.9906132,2464.3,2463.8,4.05867]
[1727817972317,0.77689503,2464.2,2463.8,4.05867]
[1727817973016,0.77689503,2464.2,2463.7,4.05885]
[1727817973017,4.83500503,2464.2,2463.7,8.11769]
[1727817973372,4.83500503,2464.2,2463.7,4.05884]
[1727817974005,4.83500503,2464.2,2463.7,8.11768]
[1727817974217,0.9695655,2464.1,2463.7,8.11768]
[1727817974575,0.9695655,2464.1,2463.7,4.05884]
[1727817975118,0.9695655,2464.1,2463.6,1.71049665]
[1727817975119,0.8141,2464.0,2463.6,4.05908]
[1727817975975,0.8141,2464.0,2463.5,5.76962665]
[1727817975976,0.8141,2464.0,2463.5,4.05913]
[1727817976182,4.64282255,2463.9,2463.4,7.05935]
[1727817976416,8.70151255,2463.9,2463.4,7.05935]
[1727817976619,4.64282255,2463.9,2463.4,4.05935]
[1727817977119,4.64282255,2463.9,2463.5,4.05924]
[1727817977412,4.64282255,2463.9,2463.3,4.05947]
[1727817977413,4.05898,2463.7,2463.3,4.05947]
[1727817977633,0.8141,2463.6,2462.9,4.06013]
[1727817977780,1.71049665,2463.8,2462.8,4.06041]
[1727817977781,0.8141,2463.3,2462.8,4.06041]
[1727817977975,0.8141,2463.3,2462.7,4.06045]
[1727817977976,4.05983,2463.2,2462.7,4.06045]
[1727817978208,0.8141,2462.9,2462.5,4.06076]
[1727817978759,4.06043,2462.8,2462.4,1.71049665]
[1727817978917,4.547853,2462.8,2462.4,1.71049665]
[1727817979110,0.487423,2462.8,2462.3,4.06113]
[1727817979438,0.487423,2462.8,2462.3,4.06122]
[1727817979642,0.5361853,2462.7,2462.3,4.0611]
[1727817979863,0.8141,2462.6,2462.1,4.06146]
[1727817980006,4.87497,2462.6,2462.0,4.06171]
[1727817980204,0.8141,2462.4,2462.0,4.06171]
[1727817980404,0.8141,2462.4,2462.0,4.06167]
[1727817981181,0.8141,2462.4,2461.8,4.06204]
[1727817981182,24.40524,2462.4,2461.8,4.06204]
[1727817981449,0.8141,2462.2,2461.7,4.06212]
[1727817981611,0.8141,2462.1,2461.5,4.0624]
[1727817981961,4.06148,2462.2,2461.1,4.0631]
[1727817981962,0.8141,2461.6,2461.1,4.0631]
[1727817982254,19.53,2461.5,2460.9,4.06341]
[1727817982417,19.53,2461.5,2461.1,4.06318]
[1727817982418,2.03441,2461.4,2461.1,4.06318]
[1727817982606,2.03441,2461.4,2460.9,4.06344]
[1727817982944,2.03441,2461.4,2461.1,4.06318]
[1727817984202,2.03441,2461.4,2461.2,4.06294]
[1727817984408,19.53,2461.5,2461.1,4.0631]
[1727817984409,2.156441,2461.3,2461.1,4.0631]
[1727817985816,19.53,2461.4,2461.1,4.0631]
[1727817986339,19.53,2461.4,2461.1,8.12623]
[1727817986648,19.53,2461.4,2461.1,4.0631]
[1727817986849,19.53,2461.4,2461.3,4.06289]
[1727817987406,19.53,2461.8,2461.7,4.06223]
[1727817987642,20.3441,2461.9,2461.8,4.06206]
[1727817987843,19.53,2461.9,2461.8,4.06206]
[1727817988044,19.53,2462.2,2462.1,4.06157]
[1727817988553,19.53,2462.2,2462.0,4.06171]
[1727817989211,19.53,2462.2,2462.1,4.06157]
[1727817989517,20.3409,2462.3,2462.1,4.06157]
[1727817989747,19.53,2462.2,2461.9,4.06174]
[1727817990223,19.53,2462.2,2462.0,4.06161]
[1727817991014,4.06167,2462.1,2460.7,4.06385]
[1727817991244,0.8109,2461.9,2461.2,4.06304]
[1727817991548,0.8109,2461.9,2460.7,4.06379]
[1727817991549,4.06282,2461.4,2460.7,4.06379]
[1727817991858,4.06324,2461.1,2460.5,4.06413]
[1727817992360,28.4669,2461.3,2460.6,4.06403]
[1727817992504,4.06306,2461.2,2460.6,4.06403]
[1727817992707,24.4039,2461.3,2460.6,4.06397]
[1727817992907,2.44039,2461.2,2460.7,4.06379]
[1727817993711,19.53,2461.1,2460.7,4.06379]
[1727817994055,19.53,2461.1,2460.8,4.06363]
[1727817994973,21.97039,2461.2,2460.6,7.77693397]
[1727817995172,0.8109,2461.1,2460.5,4.06411]
[1727817995329,4.87416,2461.1,2460.5,4.06411]
[1727817995520,4.87416,2461.1,2460.5,8.12821]
[1727817995720,2.440416,2461.0,2460.5,8.12821]
[1727817996415,2.440416,2461.0,2460.6,4.06399]
[1727817996645,4.06355,2460.9,2460.4,4.06436]
[1727817996965,19.53,2460.8,2460.5,4.06409]
[1727817997120,19.53,2460.8,2460.4,4.06437]
[1727817997315,19.53,2460.8,2460.4,8.12874]
[1727817997747,19.53,2460.8,2460.4,4.06437]
[1727817997954,19.53,2460.8,2460.7,4.06388]
[1727817998261,19.53,2460.8,2460.6,4.06403]
[1727817998653,19.53,2460.8,2460.7,4.06388]
[1727817999020,19.53,2460.8,2460.6,4.06396]
[1727817999223,19.53,2460.8,2460.7,4.06388]
[1727818000355,19.53,2461.0,2460.6,4.06396]
[1727818000672,20.017398,2461.0,2460.6,4.06395]
[1727818001169,20.017398,2461.0,2460.6,8.12788]
[1727818001387,20.017398,2461.0,2460.6,4.06393]
[1727818001680,20.017398,2461.0,2460.3,3.71291397]
[1727818001883,20.017398,2461.0,2460.8,8.12721]
[1727818002298,2.33409,2461.6,2460.3,7.77743397]
[1727818002299,19.53,2461.8,2461.3,4.06289]
[1727818002443,0.8301,2461.8,2461.5,4.06243]
[1727818003076,0.8301,2461.8,2461.6,4.06228]
[1727818003256,0.8301,2461.8,2461.5,4.06243]
[1727818003792,0.8301,2461.8,2461.6,4.06236]
[1727818004085,0.8301,2461.8,2461.5,4.06243]
[1727818004865,0.8301,2461.8,2461.6,4.06239]
[1727818005250,0.8301,2461.8,2461.5,8.12488]
[1727818005477,0.8301,2461.8,2461.5,4.06243]
[1727818006456,0.8301,2461.8,2461.4,4.06263]
[1727818007200,0.8301,2461.8,2461.5,4.06252]
[1727818007496,19.53,2462.0,2461.5,3.7349651]
[1727818007802,19.53,2462.0,2461.7,4.06218]
[1727818007992,19.53,2462.0,2461.9,4.0619]
[1727818008154,0.42467057,2462.1,2461.9,4.0619]
[1727818008356,19.53,2462.3,2461.9,4.0619]
[1727818008551,19.53,2462.3,2461.8,4.06199]
[1727818008552,21.972118,2462.3,2461.8,4.06199]
[1727818008804,21.972118,2462.3,2462.0,4.06172]
[1727818008805,19.53,2462.2,2462.0,4.06172]
[1727818010162,19.53,2462.2,2461.9,4.0619]
[1727818010497,19.53,2462.2,2462.0,4.06173]
[1727818010804,19.53,2462.2,2462.0,4.06169]
[1727818011495,19.53,2462.2,2462.0,4.06164]
[1727818012266,19.53,2462.4,2462.0,4.06164]
[1727818012466,22.295189,2462.4,2462.0,4.06164]
[1727818012914,26.356339,2462.4,2461.9,4.06179]
[1727818013423,0.8301,2462.3,2461.9,4.06179]
[1727818013581,0.8301,2462.3,2461.8,7.77487397]
[1727818013783,4.89136,2462.3,2461.8,7.77487397]
[1727818014005,3.9548609,2462.3,2461.8,3.71291397]
[1727818014197,3.9548609,2462.3,2461.9,4.06182]
[1727818016396,3.9548609,2462.3,2461.9,4.06187]
[1727818017479,3.9548609,2462.3,2462.0,4.0617]
[1727818017722,3.9548609,2462.3,2461.9,8.12369]
[1727818017901,3.9548609,2462.3,2461.9,4.06182]
[1727818018094,19.53,2462.2,2462.0,4.06172]
[1727818020158,19.53,2462.2,2461.9,4.06182]
[1727818020450,19.53,2462.2,2462.0,4.0617]
[1727818020653,21.87848609,2462.2,2461.9,4.0618]
[1727818020815,21.87848609,2462.2,2461.9,4.06174]
[1727818021020,21.87848609,2462.2,2462.0,4.06165]
[1727818022111,21.87848609,2462.2,2462.0,4.06164]
[1727818022353,2.27085861,2462.1,2461.8,4.06194]
[1727818022722,2.27085861,2462.1,2461.9,4.06179]
[1727818023261,2.27085861,2462.1,2462.0,4.06173]
[1727818023827,2.27085861,2462.1,2461.9,4.06179]
[1727818024032,2.27085861,2462.1,2462.0,4.06173]
[1727818025331,2.27085861,2462.1,2461.9,4.06179]
[1727818026445,0.49529329,2462.0,2461.9,4.06179]
[1727818027636,0.49529329,2462.0,2461.8,8.124]
[1727818027872,0.49529329,2462.0,2461.8,4.06195]
[1727818028031,0.49529329,2462.0,2461.9,4.0619]
[1727818028654,19.53,2462.2,2462.1,4.06157]
[1727818030042,20.2835,2462.5,2462.3,4.06119]
[1727818030242,0.7535,2462.5,2462.4,4.06107]
[1727818030500,0.7535,2462.5,2462.3,4.06119]
[1727818030979,0.7535,2462.5,2462.4,4.06107]
[1727818031182,2.82431549,2462.5,2462.3,4.06119]
[1727818035753,4.06108,2462.4,2461.8,3.71291397]
[1727818036085,2.82431549,2462.5,2461.8,3.71291397]
[1727818036086,4.06149,2462.2,2461.8,4.06205]
[1727818036292,4.06149,2462.2,2461.5,7.77537397]
[1727818036293,0.79,2462.1,2461.5,7.77537397]
[1727818036461,4.85161,2462.1,2461.7,4.06216]
[1727818036659,0.891311,2462.0,2461.7,4.06216]
[1727818037087,4.953101,2462.0,2461.5,4.06247]
[1727818037287,4.06197,2461.9,2461.4,4.06271]
[1727818037498,19.53,2461.8,2461.6,4.06237]
[1727818037664,1.953,2461.7,2461.6,4.06237]
[1727818038098,1.953,2461.7,2461.5,4.06254]
[1727818038402,1.953,2461.7,2461.6,4.06239]
[1727818038576,19.53,2461.8,2461.6,4.06239]
[1727818038775,19.53,2461.8,2461.7,4.06223]
[1727818039349,19.53,2461.8,2461.7,7.06223]
[1727818039587,19.53,2461.8,2461.7,7.61223]
[1727818039760,19.53,2461.8,2461.7,9.1509804]
[1727818039963,1.21464688,2462.5,2462.3,4.06117]
[1727818040180,1.21464688,2462.5,2462.1,4.06141]
[1727818040353,1.21464688,2462.5,2461.9,3.71291397]